{"text_format":"3","workbook":"xlsx","n_sheets":4,"sheets":["Rezime","Sredstva","Obaveze","Kategorije"],"not_rendered":{"defined_names":10},"read":"whole","date_system":"1900"}

{"sheet":"Rezime","index":0,"n_rows":12,"n_cols":4,"rows_kept":12}
[null,"Bilans stanja"]
[null,null,{"$f":"\"FY-\"&YEAR(TODAY())-1","v":"FY-2016"},{"$f":"\"FY-\"&YEAR(TODAY())","v":"FY-2017"}]
[null,"Tip sredstava","Prethodna godina","Trenutna godina"]
[null,"Trenutna sredstva",{"$f":"SUMIFS(Sredstva[Prethodna godina],Sredstva[Tip sredstava],Kontrolna_tabla[[#This Row],[Tip sredstava]])+SUMIFS(Obaveze[Prethodna godina],Obaveze[Tip obaveze],Kontrolna_tabla[[#This Row],[Tip sredstava]])","v":600},{"$f":"SUMIFS(Sredstva[Trenutna godina],Sredstva[Tip sredstava],Kontrolna_tabla[[#This Row],[Tip sredstava]])+SUMIFS(Obaveze[Trenutna godina],Obaveze[Tip obaveze],Kontrolna_tabla[[#This Row],[Tip sredstava]])","v":600}]
[null,"Osnovna sredstva",{"$f":"SUMIFS(Sredstva[Prethodna godina],Sredstva[Tip sredstava],Kontrolna_tabla[[#This Row],[Tip sredstava]])+SUMIFS(Obaveze[Prethodna godina],Obaveze[Tip obaveze],Kontrolna_tabla[[#This Row],[Tip sredstava]])","v":{"v":-100,"d":"-100 "}},{"$f":"SUMIFS(Sredstva[Trenutna godina],Sredstva[Tip sredstava],Kontrolna_tabla[[#This Row],[Tip sredstava]])+SUMIFS(Obaveze[Trenutna godina],Obaveze[Tip obaveze],Kontrolna_tabla[[#This Row],[Tip sredstava]])","v":{"v":-85,"d":"-85 "}}]
[null,"Druga sredstva",{"$f":"SUMIFS(Sredstva[Prethodna godina],Sredstva[Tip sredstava],Kontrolna_tabla[[#This Row],[Tip sredstava]])+SUMIFS(Obaveze[Prethodna godina],Obaveze[Tip obaveze],Kontrolna_tabla[[#This Row],[Tip sredstava]])","v":0},{"$f":"SUMIFS(Sredstva[Trenutna godina],Sredstva[Tip sredstava],Kontrolna_tabla[[#This Row],[Tip sredstava]])+SUMIFS(Obaveze[Trenutna godina],Obaveze[Tip obaveze],Kontrolna_tabla[[#This Row],[Tip sredstava]])","v":0}]
[null,"Trenutne obaveze",{"$f":"SUMIFS(Sredstva[Prethodna godina],Sredstva[Tip sredstava],Kontrolna_tabla[[#This Row],[Tip sredstava]])+SUMIFS(Obaveze[Prethodna godina],Obaveze[Tip obaveze],Kontrolna_tabla[[#This Row],[Tip sredstava]])","v":500},{"$f":"SUMIFS(Sredstva[Trenutna godina],Sredstva[Tip sredstava],Kontrolna_tabla[[#This Row],[Tip sredstava]])+SUMIFS(Obaveze[Trenutna godina],Obaveze[Tip obaveze],Kontrolna_tabla[[#This Row],[Tip sredstava]])","v":350}]
[null,"Dugoročne obaveze",{"$f":"SUMIFS(Sredstva[Prethodna godina],Sredstva[Tip sredstava],Kontrolna_tabla[[#This Row],[Tip sredstava]])+SUMIFS(Obaveze[Prethodna godina],Obaveze[Tip obaveze],Kontrolna_tabla[[#This Row],[Tip sredstava]])","v":0},{"$f":"SUMIFS(Sredstva[Trenutna godina],Sredstva[Tip sredstava],Kontrolna_tabla[[#This Row],[Tip sredstava]])+SUMIFS(Obaveze[Trenutna godina],Obaveze[Tip obaveze],Kontrolna_tabla[[#This Row],[Tip sredstava]])","v":0}]
[null,"Akcijski kapital vlasnika",{"$f":"SUMIFS(Sredstva[Prethodna godina],Sredstva[Tip sredstava],Kontrolna_tabla[[#This Row],[Tip sredstava]])+SUMIFS(Obaveze[Prethodna godina],Obaveze[Tip obaveze],Kontrolna_tabla[[#This Row],[Tip sredstava]])","v":0},{"$f":"SUMIFS(Sredstva[Trenutna godina],Sredstva[Tip sredstava],Kontrolna_tabla[[#This Row],[Tip sredstava]])+SUMIFS(Obaveze[Trenutna godina],Obaveze[Tip obaveze],Kontrolna_tabla[[#This Row],[Tip sredstava]])","v":350}]
[null,"Ukupna sredstva",{"$f":"Sredstva[[#Totals],[Prethodna godina]]","v":500},{"$f":"Sredstva[[#Totals],[Trenutna godina]]","v":515}]
[null,"Ukupne obaveze i akcijski kapital akcionara",{"$f":"Obaveze[[#Totals],[Prethodna godina]]","v":500},{"$f":"Obaveze[[#Totals],[Trenutna godina]]","v":700}]
[null,"Bilans",{"$f":"C10-C11","v":0},{"$f":"D10-D11","v":{"v":-185,"d":"-185 "}}]

{"sheet":"Sredstva","index":1,"n_rows":14,"n_cols":5,"rows_kept":14}
[null,"Sredstva"]
[{"$nulls":3},{"$f":"FY_GODINA","v":"FY-2016"},{"$f":"FY_GODINA_2","v":"FY-2017"}]
[null,"Tip sredstava","Opis","Prethodna godina","Trenutna godina"]
[null,"Trenutna sredstva","Gotovina",600,600]
[null,"Trenutna sredstva","Investicije"]
[null,"Trenutna sredstva","Zalihe"]
[null,"Trenutna sredstva","Potraživanja"]
[null,"Trenutna sredstva","Unapred plaćeni troškovi"]
[null,"Osnovna sredstva","Svojstvo i oprema"]
[null,"Osnovna sredstva","Poboljšanja zakupa"]
[null,"Osnovna sredstva","Akcijski kapital i druge investicije"]
[null,"Osnovna sredstva","Manja ispravka vrednosti (negativna vrednost)",{"v":-100,"d":"-100 "},{"v":-85,"d":"-85 "}]
[null,"Druga sredstva","Dobrotvorni prilog"]
[null,"Ukupna sredstva",null,{"$f":"SUBTOTAL(109,Sredstva[Prethodna godina])","v":500},{"$f":"SUBTOTAL(109,Sredstva[Trenutna godina])","v":515}]

{"sheet":"Obaveze","index":2,"n_rows":12,"n_cols":5,"rows_kept":12}
[null,"Obaveze"]
[{"$nulls":3},{"$f":"FY_GODINA","v":"FY-2016"},{"$f":"FY_GODINA_2","v":"FY-2017"}]
[null,"Tip obaveze","Opis","Prethodna godina","Trenutna godina"]
[null,"Trenutne obaveze","Dugovanja",null,350]
[null,"Trenutne obaveze","Akumulirana plata"]
[null,"Trenutne obaveze","Akumulirana kompenzacija",500]
[null,"Trenutne obaveze","Dugovanja za poreze na prihod"]
[null,"Trenutne obaveze","Unapred plaćeni prihod"]
[null,"Dugoročne obaveze","Dugovanja za hipoteku"]
[null,"Akcijski kapital vlasnika","Kapital za investiranje",null,350]
[null,"Akcijski kapital vlasnika","Konto neraspoređene dobiti"]
[null,"Ukupne obaveze i akcijski kapital akcionara",null,{"$f":"SUBTOTAL(109,Obaveze[Prethodna godina])","v":500},{"$f":"SUBTOTAL(109,Obaveze[Trenutna godina])","v":700}]

{"sheet":"Kategorije","index":3,"n_rows":9,"n_cols":2,"rows_kept":9}
[null,"Kategorije"]
[]
[null,"Kategorije"]
[null,"Trenutna sredstva"]
[null,"Osnovna sredstva"]
[null,"Druga sredstva"]
[null,"Trenutne obaveze"]
[null,"Dugoročne obaveze"]
[null,"Akcijski kapital vlasnika"]